bitfinex/quotes_ETHUSD_20251110
["timestamp","ask_amount","ask_price","bid_price","bid_amount"]
[1762773520969,0.25891753,3609.6,3609.5,3.26592679]
[1762773523871,0.73121753,3609.6,3609.5,0.002]
[1762773525886,1.21131753,3609.6,3609.5,0.002]
[1762773526389,0.4723,3609.6,3609.5,0.002]
[1762773527179,0.73046543,3609.6,3609.5,0.002]
[1762773528194,0.72966543,3609.6,3609.5,0.002]
[1762773528580,0.72964661,3609.6,3609.5,0.002]
[1762773529705,1.20974661,3609.6,3609.5,0.002]
[1762773529858,3.98013668,3609.6,3609.5,0.002]
[1762773530266,1.20974661,3609.6,3609.5,0.002]
[1762773534564,0.9516,3609.6,3609.5,0.002]
[1762773534767,1.2101439,3609.6,3609.5,0.002]
[1762773535205,0.2585439,3609.6,3609.5,3.36402679]
[1762773535497,0.2585439,3609.6,3609.5,6.13449361]
[1762773536081,0.2585439,3609.6,3609.5,3.36402679]
[1762773537803,0.2585439,3609.6,3609.5,3.26592679]
[1762773537997,0.2595439,3609.6,3609.5,3.26592679]
[1762773538674,1.2296439,3609.6,3609.5,0.002]
[1762773539410,4.00003397,3609.6,3609.5,0.002]
[1762773540173,1.2296439,3609.6,3609.5,0.002]
[1762773540373,1.22987024,3609.6,3609.5,0.002]
[1762773540903,4.00026031,3609.6,3609.5,0.002]
[1762773544783,1.22987024,3609.6,3609.5,0.002]
[1762773544977,0.73772506,3609.6,3609.5,0.002]
[1762773545515,0.26012506,3609.6,3609.5,3.36402679]
[1762773545728,0.26012506,3609.6,3609.5,0.1001]
[1762773546506,0.26012506,3609.6,3609.5,0.002]
[1762773546750,0.73772506,3609.6,3609.5,0.002]
[1762773547556,0.26012506,3609.6,3609.5,0.002]
[1762773547706,0.73772506,3609.6,3609.5,0.002]
[1762773548031,1.23022506,3609.6,3609.5,0.002]
[1762773549317,1.23043179,3609.6,3609.5,0.002]
[1762773550022,4.00082186,3609.6,3609.5,0.002]
[1762773550205,1.23043179,3609.6,3609.5,0.002]
[1762773550407,4.00082186,3609.6,3609.5,0.002]
[1762773551759,1.23043179,3609.6,3609.5,0.002]
[1762773552251,4.00002186,3609.6,3609.5,0.002]
[1762773554651,1.22963179,3609.6,3609.5,0.002]
[1762773555158,4.00002186,3609.6,3609.5,0.002]
[1762773558049,7.26394865,3609.6,3609.5,0.002]
[1762773558260,4.00002186,3609.6,3609.5,0.002]
[1762773560656,8.52366065,3609.6,3609.5,0.002]
[1762773560862,5.25973386,3609.6,3609.5,0.002]
[1762773562284,4.00002186,3609.6,3609.5,0.002]
[1762773564265,3.50752186,3609.6,3609.5,0.002]
[1762773564452,0.25953179,3609.6,3609.5,0.1001]
[1762773564652,0.73713179,3609.6,3609.5,0.002]
[1762773564886,4.00002186,3609.6,3609.5,0.002]
[1762773567141,7.26394865,3609.6,3609.5,0.002]
[1762773567883,8.52366065,3609.6,3609.5,0.002]
[1762773573859,8.92916465,3609.6,3609.5,0.002]
[1762773574789,8.9284217,3609.6,3609.5,0.002]
[1762773575089,5.66449491,3609.6,3609.5,0.002]
[1762773576394,5.66369491,3609.6,3609.5,0.002]
[1762773581655,5.25819091,3609.6,3609.5,0.002]
[1762773585119,6.31069491,3609.6,3609.5,0.002]
[1762773585275,7.29833609,3609.2,3609.1,0.012]
[1762773585604,8.68172493,3609.2,3609.1,0.012]
[1762773585820,2.77100421,3608.8,3608.7,0.002]
[1762773586026,6.96172004,3608.8,3608.7,0.002]
[1762773586182,3.02959305,3608.8,3608.7,0.002]
[1762773587212,3.50739305,3608.8,3608.7,0.002]
[1762773588076,3.99599305,3608.8,3608.7,0.002]
[1762773598617,3.02959305,3608.8,3608.7,0.1007]
[1762773599327,3.02959305,3608.8,3608.7,0.002]
[1762773599699,3.49379305,3608.8,3608.7,0.002]
[1762773599903,3.96579305,3608.8,3608.7,0.002]
[1762773600253,3.96499305,3608.8,3608.7,0.002]
[1762773602731,3.02879305,3608.8,3608.7,0.002]
[1762773602911,3.02879305,3608.8,3608.7,0.1007]
[1762773605643,0.25858884,3608.8,3608.7,0.1994]
[1762773605854,3.02959305,3608.8,3608.7,0.1994]
[1762773606054,0.25858884,3608.8,3608.7,0.1994]
[1762773608992,0.25876649,3608.8,3608.7,0.1994]
[1762773609168,0.25876649,3608.8,3608.7,0.46563037]
[1762773617568,0.25876649,3608.8,3608.7,10.63075805]
[1762773617770,0.001,3609.1,3609.0,4.03056265]
[1762773617958,0.001,3609.1,3609.0,4.12926265]
[1762773618159,0.001,3609.1,3609.0,4.22796265]
[1762773618360,0.001,3609.1,3609.0,5.68531847]
[1762773618560,0.7234876,3609.1,3608.7,0.002]
[1762773618761,3.23520421,3608.8,3608.7,0.002]
[1762773619090,3.49349181,3608.8,3608.7,0.002]
[1762773619249,3.96549181,3608.8,3608.7,0.002]
[1762773622632,3.49349181,3608.8,3608.7,0.002]
[1762773622841,3.96549181,3608.8,3608.7,0.002]
[1762773623138,3.96549181,3608.8,3608.7,0.1007]
[1762773623139,0.2582876,3608.8,3608.7,0.1007]
[1762773623917,0.2592876,3608.8,3608.7,0.1007]
[1762773624092,0.2584876,3608.8,3608.7,0.1007]
[1762773625000,3.02949181,3608.8,3608.7,0.1007]
[1762773625178,0.2584876,3608.8,3608.7,0.1007]
[1762773625517,3.02949181,3608.8,3608.7,0.1007]
[1762773628132,2.77200421,3608.8,3608.7,0.1007]
[1762773628334,3.69240421,3608.8,3608.7,0.002]
[1762773630589,4.33940421,3608.8,3608.7,0.002]
[1762773631007,5.59911621,3608.8,3608.7,0.002]
[1762773634029,5.13101621,3608.8,3608.7,0.002]
[1762773634191,5.59911621,3608.8,3608.7,0.002]
[1762773635237,4.03171621,3608.8,3608.7,0.002]
[1762773635968,4.03171621,3608.8,3608.7,0.1007]
[1762773636125,4.28982235,3608.8,3608.7,0.1007]
[1762773636319,0.25910614,3608.8,3608.7,0.1007]
[1762773636566,0.25910614,3608.8,3608.7,0.1994]
[1762773637124,0.25910614,3608.8,3608.7,0.49666135]
[1762773638661,0.25910614,3608.8,3608.7,0.39796135]
[1762773638820,0.25910614,3608.8,3608.7,0.1007]
[1762773639258,0.25910614,3608.8,3608.7,0.1994]
[1762773640842,0.25930354,3608.8,3608.7,2.97048099]
[1762773641055,0.25930354,3608.8,3608.7,0.1994]
[1762773642769,0.25930354,3608.8,3608.7,0.1007]
[1762773647188,0.25930354,3608.8,3608.7,0.002]
[1762773647592,3.95070775,3608.8,3608.7,0.002]
[1762773648061,3.94990775,3608.8,3608.7,0.002]
[1762773649188,3.48180775,3608.8,3608.7,0.002]
[1762773649490,0.25850354,3608.8,3608.7,0.1007]
[1762773649878,3.48180775,3608.8,3608.7,0.002]
[1762773650254,0.25850354,3608.8,3608.7,0.1007]
[1762773650474,3.02950775,3608.8,3608.7,0.1007]
[1762773651179,3.02950775,3608.8,3608.7,0.002]
[1762773651378,3.48180775,3608.8,3608.7,0.002]
[1762773651894,0.25850354,3608.8,3608.7,0.1007]
[1762773652219,0.25850354,3608.8,3608.7,0.002]
[1762773652511,0.25850354,3608.8,3608.7,0.1007]
[1762773654912,3.02950775,3608.8,3608.7,0.002]
[1762773655592,4.01100775,3608.8,3608.7,0.002]
[1762773655926,3.02950775,3608.8,3608.7,0.002]
[1762773656381,3.52450775,3608.8,3608.7,0.002]
[1762773657074,4.01100775,3608.8,3608.7,0.002]
[1762773657617,3.02950775,3608.8,3608.7,0.002]
[1762773658076,4.01100775,3608.8,3608.7,0.002]
[1762773658803,5.91771975,3608.8,3608.7,0.002]
[1762773659004,9.18767299,3608.8,3608.7,0.002]
[1762773661911,8.54067299,3608.8,3608.7,0.002]
[1762773662300,3.02950775,3608.8,3608.7,0.1007]
[1762773662475,3.02950775,3608.8,3608.7,0.002]
[1762773662878,3.52450775,3608.8,3608.7,0.002]
[1762773663416,6.79446099,3608.8,3608.7,0.002]
[1762773664120,3.02950775,3608.8,3608.7,0.002]
[1762773664474,0.25850354,3608.8,3608.7,0.002]
[1762773664981,3.02950775,3608.8,3608.7,0.002]
[1762773666317,3.02950775,3608.8,3608.7,0.1007]
[1762773672199,3.02870775,3608.8,3608.7,0.1007]
[1762773673206,3.02870775,3608.8,3608.7,0.002]
[1762773674719,3.02970775,3608.8,3608.7,0.002]
[1762773675882,3.52470775,3608.8,3608.7,0.002]
[1762773676086,3.02970775,3608.8,3608.7,0.002]
[1762773676775,0.25870354,3608.8,3608.7,0.1007]
[1762773677346,0.25870354,3608.8,3608.7,6.24043423]
[1762773677506,0.25870354,3608.8,3608.7,7.21636962]
[1762773677912,0.25870354,3608.8,3608.7,4.44528863]
[1762773678258,0.25870354,3608.8,3608.7,0.1994]
[1762773682555,0.25870354,3608.8,3608.7,2.97048099]
[1762773683246,0.25870354,3608.8,3608.7,6.24043423]
[1762773683806,0.25870354,3608.8,3608.7,2.97048099]
[1762773684860,0.25870354,3608.8,3608.7,2.87178099]
[1762773685169,0.25870354,3608.8,3608.7,0.7496403]
[1762773685346,0.25870354,3608.8,3608.7,0.1007]
[1762773686749,0.25870354,3608.8,3608.7,0.002]
[1762773687121,0.25870354,3608.8,3608.7,0.0452]
[1762773687441,0.25870354,3608.8,3608.7,0.0904]
[1762773687760,0.25870354,3608.8,3608.7,0.60867767]
[1762773688054,0.25870354,3608.8,3608.7,3.42495866]
[1762773688259,0.25870354,3608.8,3608.7,6.6949119]
[1762773688448,0.25870354,3608.8,3608.7,7.1004159]
[1762773690476,0.25870354,3608.8,3608.7,3.83046266]
[1762773691643,0.25870354,3608.8,3608.7,3.78526266]
[1762773692146,0.25870354,3608.8,3608.7,3.83046266]
[1762773695428,0.25870354,3608.8,3608.7,3.37975866]
[1762773696228,0.25790354,3608.8,3608.7,3.37975866]
[1762773696769,0.25790354,3608.8,3608.7,3.42495866]
[1762773698035,0.25790354,3608.8,3608.7,3.37975866]
[1762773700642,0.25790354,3608.8,3608.7,3.42495866]
[1762773700843,0.25790354,3608.8,3608.7,3.37975866]
[1762773702275,1.21090354,3608.8,3608.7,2.4609037]
[1762773702637,0.73010354,3608.8,3608.7,2.4609037]
[1762773704985,1.21090354,3608.8,3608.7,2.4609037]
[1762773705277,3.98190775,3608.8,3608.7,2.4609037]
[1762773705478,1.21090354,3608.8,3608.7,2.4609037]
[1762773707985,1.21090354,3608.8,3608.6,0.002]
[1762773708153,1.21256431,3608.7,3608.6,0.002]
[1762773710189,0.25956431,3608.7,3608.6,0.002]
[1762773710909,0.25956431,3608.7,3608.6,2.81835778]
[1762773711085,0.25956431,3608.7,3608.6,2.86355778]
[1762773711580,0.25956431,3608.7,3608.6,2.81835778]
[1762773711752,0.25956431,3608.7,3608.6,4.23308077]
[1762773713790,0.25956431,3608.7,3608.6,6.69398447]
[1762773713991,0.25956431,3608.7,3608.6,9.21051218]
[1762773714198,0.001,3608.8,3608.7,4.43629699]
[1762773714397,0.001,3608.8,3608.7,4.52669699]
[1762773714598,0.001,3608.8,3608.7,6.49635149]
[1762773720302,0.0002,3608.8,3608.7,6.49635149]
[1762773721499,0.0002,3608.8,3608.7,6.60725204]
[1762773722001,0.0002,3608.8,3608.7,6.9592658]
[1762773722580,0.0002,3608.8,3608.7,9.8772658]
[1762773722903,0.001,3609.1,3609.0,3.17635465]
[1762773723207,0.001,3609.1,3609.0,12.60196491]
[1762773723390,0.001,3609.1,3609.0,12.61945641]
[1762773723592,0.001,3609.1,3609.0,12.73032468]
[1762773724381,0.001,3609.9,3609.5,4.43568282]
[1762773724583,0.001,3609.9,3609.5,9.26094675]
[1762773724878,0.001,3609.9,3609.5,11.05045584]
[1762773725081,0.001,3609.9,3609.5,11.16132135]
[1762773726278,0.001,3609.9,3609.5,9.67597749]
[1762773726888,1e-08,3610.0,3609.9,3.22086383]
[1762773727095,1e-08,3610.0,3609.9,8.50490303]
[1762773727275,1e-08,3610.0,3609.9,8.52240144]
[1762773727475,1e-08,3610.0,3609.9,8.63325189]
[1762773727807,1e-08,3610.0,3609.9,9.32961681]
[1762773728007,1e-08,3610.0,3609.9,8.63325189]
[1762773728213,1e-08,3610.0,3609.9,9.37453347]
[1762773729337,1e-08,3610.0,3609.9,8.58805189]
[1762773729714,1e-08,3610.0,3609.9,8.63325189]
[1762773729918,1e-08,3610.0,3609.9,9.37453347]
[1762773730088,1e-08,3610.0,3609.9,8.63325189]
[1762773730291,1e-08,3610.0,3609.9,9.37393587]
[1762773731679,1e-08,3610.0,3609.9,9.32873587]
[1762773731991,1e-08,3610.0,3609.9,8.58805189]
[1762773732719,1e-08,3610.0,3609.9,8.13734789]
[1762773732720,0.94150001,3610.0,3609.9,8.13734789]
[1762773732921,0.94150001,3610.0,3609.9,4.14072228]
[1762773733523,0.94150001,3610.0,3609.9,4.54622628]
[1762773734218,0.94150001,3610.0,3609.9,1.259712]
[1762773734420,0.94150001,3610.0,3609.9,4.02987183]
[1762773734620,0.94150001,3610.0,3609.6,0.83165039]
[1762773734924,0.6831,3609.7,3609.6,4.03010207]
[1762773735288,1.1358,3609.7,3609.6,4.03010207]
[1762773737619,0.6831,3609.7,3609.6,4.03010207]
[1762773737801,0.4888,3609.7,3609.6,4.03010207]
[1762773738895,0.9415,3609.7,3609.6,2.77039007]
[1762773739717,1e-08,3610.0,3609.8,2.77023657]
[1762773739910,0.45270001,3610.0,3609.9,2.77015983]
[1762773740387,0.94150001,3610.0,3609.9,2.77015983]
[1762773740803,0.94150001,3610.0,3609.9,3.17566383]
[1762773741142,0.94150001,3610.0,3609.9,4.09695541]
[1762773741312,0.94150001,3610.0,3609.9,6.55785911]
[1762773741640,0.94150001,3610.0,3609.9,2.77015983]
[1762773742450,1.1999611,3610.0,3609.9,2.77015983]
[1762773744240,1.1991611,3610.0,3609.9,2.77015983]
[1762773744950,0.7464611,3610.0,3609.9,2.77015983]
[1762773745311,0.4929,3610.3,3610.2,2.76992964]
[1762773745513,0.25872184,3610.3,3610.2,2.76992964]
[1762773745734,0.25872184,3610.3,3610.2,3.32392423]
[1762773746255,0.72982184,3610.3,3610.2,3.35162352]
[1762773746457,0.72982184,3610.3,3610.2,3.32392423]
[1762773747658,0.25872184,3610.3,3610.2,3.77542823]
[1762773747962,0.001,3610.4,3610.3,3.17535692]
[1762773748165,0.73096589,3610.4,3610.3,4.57603878]
[1762773748738,1.22386589,3610.4,3610.3,4.57603878]
[1762773749148,1.22386589,3610.4,3609.9,0.74068398]
[1762773749353,0.4711,3610.0,3609.9,4.02986694]
[1762773750164,0.964,3610.0,3609.9,4.02986694]
[1762773750564,0.964,3610.0,3609.7,0.74068398]
[1762773750565,1.22302099,3610.0,3609.7,0.74068398]
[1762773750736,0.001,3610.4,3609.7,4.03002532]
[1762773750737,0.6531,3609.8,3609.7,4.03002532]
[1762773750938,0.91212099,3609.8,3609.7,4.03002532]
[1762773751139,1.40502099,3609.8,3609.7,4.03002532]
[1762773754256,1.40509151,3609.8,3609.7,4.03002532]
[1762773754754,0.91219151,3609.8,3609.7,4.03002532]
[1762773754957,0.91219151,3609.8,3609.7,5.29313455]
[1762773755342,0.91219151,3609.8,3609.7,5.32083768]
[1762773756071,0.73019151,3609.8,3609.7,5.29313455]
[1762773758338,0.73019151,3609.8,3609.7,6.03381853]
[1762773758872,0.73019151,3609.8,3609.7,9.29871965]
[1762773759248,0.25909151,3609.8,3609.7,9.70422365]
[1762773760168,0.25909151,3609.8,3609.7,10.19712365]
[1762773760746,0.25909151,3609.8,3609.7,12.65802735]
[1762773761378,0.25909151,3609.8,3609.7,11.91734337]
[1762773762148,0.25909151,3609.8,3609.7,11.96334337]
[1762773763179,0.25909151,3609.8,3609.7,11.47044337]
[1762773763764,0.25909151,3609.8,3609.7,11.42444337]
[1762773764574,0.91219151,3609.8,3609.7,2.4609037]
[1762773764765,1.40509151,3609.8,3609.7,2.4609037]
[1762773764961,1.40509151,3609.8,3609.7,5.23121702]
[1762773766075,1.40509151,3609.8,3609.7,5.97693121]
[1762773766273,1.40509151,3609.8,3609.7,9.24183233]
[1762773767011,0.73019151,3609.8,3609.7,9.24183233]
[1762773767185,0.25909151,3609.8,3609.7,6.78092863]
[1762773767374,0.25909151,3609.8,3609.7,7.83539142]
[1762773767889,0.25909151,3609.8,3609.7,8.24063879]
[1762773768187,0.25909151,3609.8,3609.6,0.74745756]
[1762773768188,1.22229151,3609.8,3609.6,0.74745756]
[1762773768489,1.22229151,3609.8,3609.6,2.77239007]
[1762773768490,0.4711,3609.7,3609.6,2.77239007]
[1762773768686,0.964,3609.7,3609.6,2.77239007]
[1762773769079,0.964,3609.7,3609.6,0.002]
[1762773769785,3.73431332,3609.7,3609.6,0.002]
[1762773770984,6.99921444,3609.7,3609.6,0.002]
[1762773771999,2.77039007,3609.6,3609.5,0.002]
[1762773772319,3.73439007,3609.6,3609.5,0.002]
[1762773774323,6.0354447,3609.4,3609.3,0.002]
[1762773774616,6.5179447,3609.4,3609.3,0.002]
[1762773774823,7.0084447,3609.4,3609.3,0.002]
[1762773779441,2.7706971,3609.2,3609.1,0.002]
[1762773779592,6.50489822,3609.2,3609.1,0.002]
[1762773779928,7.00329822,3609.2,3609.1,0.002]
[1762773780137,3.99696978,3609.2,3609.1,0.002]
[1762773780316,7.2618709,3609.2,3609.1,0.002]
[1762773781032,3.99696978,3609.2,3609.1,0.002]
[1762773782059,0.9677,3609.2,3609.1,0.002]
[1762773782224,3.99688386,3609.2,3609.1,0.002]
[1762773783730,1.22618676,3609.2,3609.1,0.002]
[1762773784137,3.99688386,3609.2,3609.1,0.002]
[1762773787025,7.26178498,3609.2,3609.1,0.002]
[1762773792252,7.26098498,3609.2,3609.1,0.002]
[1762773793747,8.52069698,3609.2,3609.1,0.002]
[1762773793949,8.91946569,3609.2,3609.1,0.002]
[1762773794125,8.52069698,3609.2,3609.1,0.002]
[1762773802394,0.25848676,3609.2,3609.1,0.0488]
[1762773802557,0.25848676,3609.2,3609.1,0.002]
[1762773802759,0.72778676,3609.2,3609.1,0.002]
[1762773802960,3.49848386,3609.2,3609.1,0.002]
[1762773803957,0.72778676,3609.2,3609.1,0.002]
[1762773804171,0.25956598,3609.2,3609.1,0.0488]
[1762773805468,0.25956598,3609.2,3609.1,0.37777258]
[1762773805668,0.25956598,3609.2,3609.1,0.0956]
[1762773806497,0.25956598,3609.2,3609.1,0.0488]
[1762773807218,0.73456598,3609.2,3609.1,0.002]
[1762773807383,3.50526308,3609.2,3609.1,0.002]
[1762773807570,3.96176308,3609.2,3609.1,0.002]
[1762773808268,7.2266642,3609.2,3609.1,0.002]
[1762773810683,12.39727732,3609.2,3609.1,0.002]
[1762773811506,9.1323762,3609.2,3609.1,0.002]
[1762773812486,12.39727732,3609.2,3609.1,0.002]
[1762773813029,12.39827732,3609.2,3609.1,0.002]
[1762773813320,9.1333762,3609.2,3609.1,0.002]
[1762773813525,12.39827732,3609.2,3609.1,0.002]
[1762773813739,9.1333762,3609.2,3609.1,0.002]
[1762773814985,12.39827732,3609.2,3609.1,0.002]
[1762773816420,12.39747732,3609.2,3609.1,0.002]
[1762773818024,12.13871134,3609.2,3609.1,0.002]
[1762773819024,8.87889402,3609.2,3609.1,0.002]
[1762773819234,3.24585065,3609.0,3608.9,1e-08]
[1762773819390,4.91106665,3609.0,3608.9,1e-08]
[1762773819591,5.36756665,3609.0,3608.9,1e-08]
[1762773822622,4.96206265,3609.0,3608.9,1e-08]
[1762773822934,5.60806265,3609.0,3608.9,1e-08]
[1762773823531,5.15156265,3609.0,3608.9,1e-08]
[1762773823731,5.60806265,3609.0,3608.9,1e-08]
[1762773825035,4.50556265,3609.0,3608.9,1e-08]
[1762773825197,5.15156265,3609.0,3608.9,1e-08]
[1762773825700,5.60806265,3609.0,3608.9,1e-08]
[1762773827634,4.03056265,3609.0,3608.9,1e-08]
[1762773827937,4.50556265,3609.0,3608.9,1e-08]
[1762773828301,4.76440078,3609.0,3608.9,1e-08]
[1762773829035,4.28940078,3609.0,3608.9,1e-08]
[1762773829251,4.28940078,3609.0,3608.9,0.04680001]
[1762773830633,0.25883813,3609.0,3608.9,0.04680001]
[1762773830835,0.25883813,3609.0,3608.9,0.09360001]
[1762773832440,0.25883813,3609.0,3608.9,0.38046507]
[1762773832631,0.25883813,3609.0,3608.9,0.09360001]
[1762773836651,0.25883813,3609.0,3608.9,2.86452743]
[1762773836851,0.25883813,3609.0,3608.9,0.09360001]
[1762773840244,0.25803813,3609.0,3608.9,0.09360001]
[1762773840451,0.25803813,3609.0,3608.9,2.86452743]
[1762773840648,0.25803813,3609.0,3608.9,0.9036569]
[1762773842130,0.25803813,3609.0,3608.9,3.67458432]
[1762773842647,0.25803813,3609.0,3608.9,0.9036569]
[1762773843227,0.25803813,3609.0,3608.9,0.09360001]
[1762773844026,0.25803813,3609.0,3608.9,2.86452743]
[1762773844227,0.25803813,3609.0,3608.9,0.09360001]
[1762773844432,0.25803813,3609.0,3608.9,2.86452743]
[1762773845339,0.25803813,3609.0,3608.9,0.04680001]
[1762773846251,0.25803813,3609.0,3608.9,0.85686328]
[1762773846650,0.25803813,3609.0,3608.9,3.6277907]
[1762773846852,0.25803813,3609.0,3608.9,3.6745907]
[1762773847787,0.25803813,3609.0,3608.9,0.85686328]
[1762773848086,0.25903813,3609.0,3608.9,0.04680001]
[1762773851787,0.001,3609.0,3608.9,0.04680001]
[1762773852209,0.25988552,3609.0,3608.9,0.04680001]
[1762773852491,0.25988552,3609.0,3608.9,1e-08]
[1762773852691,3.94223617,3609.0,3608.9,1e-08]
[1762773852901,1.17138552,3609.0,3608.9,1e-08]
[1762773853114,0.25988552,3609.0,3608.9,0.04680001]
[1762773853472,0.25988552,3609.0,3608.9,0.09360001]
[1762773853677,0.25988552,3609.0,3608.9,2.86452743]
[1762773853984,0.25988552,3609.0,3608.9,0.09360001]
[1762773854290,0.25988552,3609.0,3608.9,2.81772743]
[1762773854497,0.25988552,3609.0,3608.9,3.38168816]
[1762773854872,0.25988552,3609.0,3608.9,0.61076074]
[1762773855303,0.25988552,3609.0,3608.9,0.04680001]
[1762773855612,0.25988552,3609.0,3608.9,2.81772743]
[1762773855907,0.25988552,3609.0,3608.9,2.86452743]
[1762773856725,0.25988552,3609.0,3608.9,0.09360001]
[1762773858092,0.25988552,3609.0,3608.9,2.8922367]
[1762773858323,0.25988552,3609.0,3608.9,4.14158034]
[1762773858522,0.25988552,3609.0,3608.9,4.11387107]
[1762773858681,0.25988552,3609.0,3608.9,4.37375659]
[1762773859111,0.001,3609.0,3608.9,6.62798004]
[1762773859325,0.001,3609.0,3608.9,7.12523576]
[1762773859798,0.001,3609.2,3609.1,4.43598987]
[1762773860009,0.001,3609.2,3609.1,8.78207934]
[1762773860226,0.001,3609.2,3609.1,8.80117161]
[1762773861310,0.001,3609.4,3609.3,2.77062034]
[1762773861502,0.001,3609.4,3609.3,4.07713234]
[1762773861697,0.001,3609.4,3609.3,4.12393234]
[1762773862000,0.001,3609.4,3609.3,5.48323785]
[1762773862309,0.001,3609.4,3609.3,5.53003785]
[1762773863219,0.001,3609.4,3609.3,6.27614501]
[1762773863428,0.001,3609.4,3609.3,5.53003785]
[1762773863642,0.001,3609.4,3609.3,5.55774405]
[1762773863926,0.001,3609.4,3609.3,5.93554185]
[1762773864132,0.0002,3609.4,3609.3,5.93554185]
[1762773865212,0.0002,3609.4,3609.3,6.6812699]
[1762773866228,0.0002,3609.4,3609.3,5.93554185]
[1762773866543,0.0002,3609.4,3609.3,6.6812699]
[1762773868240,0.0002,3609.4,3609.3,5.93554185]
[1762773868632,0.0002,3609.4,3609.3,6.0464341]
[1762773869832,0.0002,3609.4,3609.3,5.5941301]
[1762773870059,0.0002,3609.4,3609.3,5.48323785]
[1762773871859,0.468,3609.4,3609.3,4.03033234]
[1762773872325,0.0002,3609.4,3609.3,4.07713234]
[1762773872666,0.0002,3609.4,3609.3,4.03033234]
[1762773873174,0.0002,3609.4,3609.3,4.07713234]
[1762773873471,0.0002,3609.4,3609.3,7.79942126]
[1762773873678,0.0002,3609.4,3609.3,10.16441786]
[1762773875075,0.0002,3609.4,3609.3,12.62532156]
[1762773876570,0.0002,3609.4,3609.3,5.33988425]
[1762773876866,0.0002,3609.4,3609.3,6.49123604]
[1762773876867,0.468,3609.4,3609.3,6.49123604]
[1762773877252,0.0002,3609.4,3609.3,6.49123604]
[1762773878242,0.468,3609.4,3609.3,3.7206157]
[1762773878560,1.21102565,3609.4,3609.3,3.7206157]
[1762773878972,1.21102565,3609.4,3609.3,6.49123604]
[1762773879179,1.21102565,3609.4,3609.3,2.4609037]
[1762773880181,1.21102565,3609.4,3609.1,2.77275094]
[1762773880182,1.21102565,3609.4,3609.1,0.002]
[1762773880379,0.4678,3609.2,3609.1,0.002]
[1762773880712,1.21082565,3609.2,3609.1,0.002]
[1762773888344,1.21002565,3609.2,3609.1,0.002]
[1762773894629,3.98072275,3609.2,3609.1,0.002]
[1762773896696,0.25882565,3609.2,3609.1,0.002]
[1762773896855,0.73892565,3609.2,3609.1,0.002]
[1762773897184,1.20832565,3609.2,3609.1,0.002]
[1762773897384,3.97902275,3609.2,3609.1,0.002]
[1762773898287,3.9793137,3609.2,3609.1,0.002]
[1762773901094,1.2096166,3609.2,3609.1,0.002]
[1762773901391,3.9803137,3609.2,3609.1,0.002]
[1762773901603,1.2096166,3609.2,3609.1,0.002]
[1762773901891,3.9803137,3609.2,3609.1,0.002]
[1762773905116,7.24755664,3609.2,3609.1,0.002]
[1762773906531,1.2096166,3609.2,3609.1,0.002]
[1762773906732,3.9803137,3609.2,3609.1,0.002]
[1762773907082,1.2096166,3609.2,3609.1,0.002]
[1762773907420,0.7402166,3609.2,3609.1,0.002]
[1762773908532,3.9803137,3609.2,3609.1,0.002]
[1762773908827,7.24755664,3609.2,3609.1,0.002]
[1762773912088,7.24675664,3609.2,3609.1,0.002]
[1762773913221,7.24678677,3609.2,3609.1,0.002]
[1762773914384,3.98034383,3609.2,3609.1,0.002]
[1762773916488,0.26014673,3609.2,3609.1,0.002]
[1762773917751,0.26014673,3609.2,3609.1,0.0504]
[1762773921066,0.26014673,3609.2,3609.1,0.002]
[1762773922117,0.26014673,3609.2,3609.1,0.0504]
[1762773923813,0.26014673,3609.2,3609.1,0.002]
[1762773925659,0.26014673,3609.2,3609.1,0.0504]
[1762773927732,0.26014673,3609.2,3609.1,3.71195765]
[1762773927933,0.26014673,3609.2,3609.1,0.94118378]
[1762773929465,3.03084383,3609.2,3609.1,0.002]
[1762773930123,0.26014673,3609.2,3609.1,0.002]
[1762773931348,0.26014673,3609.2,3609.1,0.0504]
[1762773931918,0.26014673,3609.2,3609.1,2.82117387]
[1762773932118,0.26014673,3609.2,3609.1,2.86957387]
[1762773932432,0.0002,3609.4,3609.2,0.405504]
[1762773932630,0.001,3609.6,3609.5,4.03017882]
[1762773932830,0.001,3609.6,3609.5,7.34582176]
[1762773933051,0.001,3609.6,3609.5,11.86795332]
[1762773933357,0.001,3609.6,3609.5,12.86309131]
[1762773933556,0.001,3609.6,3609.5,8.60071038]
[1762773933718,0.001,3609.6,3609.5,9.59582682]
[1762773934115,0.001,3609.6,3609.5,12.27345732]
[1762773934755,0.001,3609.8,3609.7,2.77031332]
[1762773934963,0.001,3609.8,3609.7,13.22647007]
[1762773935130,0.001,3609.8,3609.7,12.2046172]
[1762773935334,0.001,3609.8,3609.7,12.31548885]
[1762773935652,0.001,3609.8,3609.7,13.71514259]
[1762773936261,0.0002,3609.8,3609.7,12.72099285]
[1762773940161,0.0002,3609.8,3609.7,13.46386349]
[1762773940868,0.0002,3609.8,3609.7,10.19300743]
[1762773943079,0.0002,3609.8,3609.7,9.45013679]
[1762773943239,0.001,3610.1,3609.9,3.17566383]
[1762773943441,0.001,3610.1,3609.9,6.82456981]
[1762773943656,0.001,3610.1,3609.9,6.87296981]
[1762773943870,0.001,3610.1,3609.9,6.24151822]
[1762773944372,0.001,3610.1,3609.9,6.9836466]
[1762773953413,0.001,3610.1,3609.9,6.24151822]
[1762773954312,0.001,3610.1,3610.0,8.89912062]
[1762773954605,0.001,3610.1,3610.0,12.48516317]
[1762773954970,0.001,3610.1,3610.0,12.59601731]
[1762773957117,0.001,3610.1,3610.0,13.11332446]
[1762773957279,0.001,3610.8,3610.3,4.43506892]
[1762773957483,0.001,3610.8,3610.3,14.02084077]
[1762773957691,0.001,3610.8,3610.3,13.99314225]
[1762773957898,0.001,3610.8,3610.3,14.1039881]
[1762773959301,0.001,3610.8,3610.3,13.11308599]
[1762773960327,0.01,3610.9,3610.8,3.22337336]
[1762773960328,1e-08,3610.9,3610.8,3.22337336]
[1762773960526,0.001,3611.1,3611.0,4.43453197]
[1762773960822,0.001,3611.1,3611.0,5.47493912]